bitfinex/quotes_ETHUSD_20240719
["timestamp","ask_amount","ask_price","bid_price","bid_amount"]
[1721348017070,1.045,3422.8,3422.7,8.32344]
[1721348017509,1.045,3422.8,3422.7,11.24511]
[1721348017683,0.03715036,3422.8,3422.7,11.24505]
[1721348017872,1.045,3423.3,3423.2,5.84248]
[1721348018084,2.4671,3424.4,3422.7,5.40171]
[1721348018310,0.45792256,3424.4,3424.1,2.9204]
[1721348018811,5.38693,3424.9,3424.1,2.9204]
[1721348018994,1.138658,3424.8,3424.1,2.9204]
[1721348019179,4.09270929,3424.8,3424.3,2.9203]
[1721348019380,1.045,3424.4,3424.1,2.9204]
[1721348019580,1.045,3424.2,3424.1,2.9204]
[1721348019977,1.07916473,3424.2,3424.1,2.9204]
[1721348020306,0.03416473,3424.2,3424.1,2.9204]
[1721348020507,2.51,3424.3,3424.2,2.92039]
[1721348020710,2.761,3424.3,3424.2,2.92039]
[1721348021319,5.51,3424.7,3424.5,2.92008]
[1721348021495,5.51,3424.7,3424.6,2.92004]
[1721348021496,2.51,3424.7,3424.6,2.92004]
[1721348021818,2.51,3424.7,3423.6,2.97924814]
[1721348021819,0.45783603,3424.9,3424.8,2.91987]
[1721348022011,0.45783603,3424.9,3424.8,5.83974]
[1721348022171,0.45783603,3424.9,3424.8,8.75961]
[1721348022374,0.45783603,3424.9,3424.3,5.18466]
[1721348022375,2.51,3425.6,3425.5,2.91928]
[1721348022572,2.99919,3425.6,3425.5,5.83856]
[1721348022779,3.02999804,3425.6,3425.5,5.83856]
[1721348023207,0.51999804,3425.6,3425.5,5.83856]
[1721348023411,0.03080804,3425.6,3425.5,5.83856]
[1721348023744,2.51,3426.0,3425.7,2.91907]
[1721348024100,2.51,3426.0,3425.2,2.91953]
[1721348024297,2.51,3426.0,3425.9,2.91894]
[1721348024544,2.51,3426.4,3425.9,2.91894]
[1721348024708,0.251,3426.3,3426.0,2.91885]
[1721348025359,0.251,3426.3,3426.1,2.91873]
[1721348025616,0.70858664,3426.3,3426.1,2.91873]
[1721348025912,3.70858664,3426.3,3426.1,2.91873]
[1721348026023,3.251,3426.3,3426.1,2.91873]
[1721348026345,0.60740963,3426.2,3426.1,2.91873]
[1721348026553,0.60740963,3426.2,3425.1,5.31563]
[1721348026744,0.60740963,3426.2,3425.6,2.91913]
[1721348026745,2.51,3426.0,3425.6,2.91913]
[1721348027066,2.51,3426.0,3425.6,2.91919]
[1721348027253,0.64084585,3425.9,3425.6,2.91919]
[1721348027743,0.03133419,3425.9,3425.6,2.91919]
[1721348029216,0.03133419,3425.9,3425.4,2.9193]
[1721348029619,0.03133419,3425.9,3425.5,2.91924]
[1721348030216,0.09024648,3425.9,3425.0,2.91969]
[1721348030540,2.51,3425.6,3425.0,2.9197]
[1721348030745,0.542916,3425.5,3425.0,2.9197]
[1721348030954,0.57410067,3425.5,3425.1,2.91961]
[1721348031919,0.57410067,3425.5,3425.4,2.91936]
[1721348031920,0.03118467,3425.5,3425.4,2.91936]
[1721348032211,2.91895,3425.9,3425.2,2.91952]
[1721348032432,0.03104342,3425.5,3425.3,2.91944]
[1721348032637,2.91895,3425.9,3425.3,2.91944]
[1721348032812,0.03104588,3425.4,3425.3,2.91944]
[1721348033008,3.510925,3425.8,3425.1,2.91962]
[1721348033220,0.03100919,3425.4,3425.2,2.91951]
[1721348033633,3.510925,3425.8,3425.2,2.91951]
[1721348033828,0.03008603,3425.3,3425.2,2.91951]
[1721348034114,0.03017776,3425.3,3424.9,2.91976]
[1721348034417,0.03017776,3425.3,3424.6,2.3614]
[1721348034418,2.51,3425.4,3424.6,5.28144]
[1721348034616,0.03008841,3425.2,3424.7,2.91996]
[1721348034819,0.34595132,3425.3,3424.7,2.91996]
[1721348035031,0.02973023,3425.1,3424.7,2.91996]
[1721348035352,0.02969599,3425.0,3424.7,2.91996]
[1721348035549,0.31580352,3425.3,3424.7,2.91996]
[1721348035763,0.60428182,3425.2,3424.7,2.91996]
[1721348038139,0.60428182,3425.2,3424.3,2.385]
[1721348038140,2.91979,3425.0,3424.4,2.92016]
[1721348038426,0.02963829,3424.9,3424.4,2.92016]
[1721348038775,2.94943829,3424.9,3424.3,5.30529]
[1721348038922,0.93088108,3424.9,3424.4,2.9202]
[1721348039460,0.98979337,3424.9,3424.4,2.9202]
[1721348040145,0.93088108,3424.9,3424.5,2.92013]
[1721348040460,0.02963829,3424.9,3424.7,2.9199]
[1721348040822,0.57451735,3425.2,3424.7,2.9199]
[1721348042043,0.0298157,3425.1,3424.7,2.9199]
[1721348044379,0.0298157,3425.1,3424.5,2.92009]
[1721348045286,2.9495157,3425.1,3424.5,2.92009]
[1721348045506,0.97004643,3425.0,3424.5,2.92009]
[1721348045850,0.02964052,3424.9,3424.5,2.92009]
[1721348046873,0.02964052,3424.9,3424.4,2.92021]
[1721348047932,0.02964052,3424.9,3424.3,2.92029]
[1721348048155,2.97879229,3424.8,3424.1,2.92043]
[1721348048365,2.92009,3424.6,3424.0,12.70764]
[1721348048606,0.02949094,3424.5,3424.0,12.70764]
[1721348049372,0.02949094,3424.5,3424.1,2.92041]
[1721348049762,3.31782792,3424.7,3424.1,2.92041]
[1721348049957,0.02947591,3424.4,3424.1,2.92041]
[1721348050158,3.31782792,3424.7,3424.1,2.92041]
[1721348050373,0.0295444,3424.6,3424.1,2.92041]
[1721348051376,0.0295444,3424.6,3424.2,2.92033]
[1721348051577,0.0295444,3424.6,3424.5,2.92013]
[1721348051746,0.57451735,3425.2,3424.1,2.92043]
[1721348051949,0.57451735,3425.2,3424.0,2.3171]
[1721348051950,2.92007,3424.6,3424.0,5.2376]
[1721348052280,2.51,3425.0,3424.1,2.9204]
[1721348052281,0.02955197,3424.5,3424.1,2.9204]
[1721348052665,2.91982,3424.9,3424.2,2.92038]
[1721348052840,0.02953607,3424.4,3424.2,2.92038]
[1721348053040,2.91992,3424.8,3424.2,2.92038]
[1721348053344,3.84493397,3424.8,3424.2,2.92038]
[1721348053539,0.02963881,3424.7,3424.2,2.92038]
[1721348055657,0.02963881,3424.7,3424.4,2.92021]
[1721348055906,3.82006973,3425.1,3424.5,2.92008]
[1721348056264,0.02870603,3425.0,3424.5,2.92008]
[1721348056504,0.02870603,3425.0,3424.6,2.3033]
[1721348056689,0.02870603,3425.0,3424.7,2.91994]
[1721348056866,3.0,3425.4,3424.9,2.91979]
[1721348059361,5.91939,3425.4,3424.8,2.91987]
[1721348060099,7.42,3425.7,3424.7,2.91992]
[1721348060323,7.79427,3425.8,3424.7,2.91992]
[1721348060324,2.91929,3425.5,3424.9,2.91972]
[1721348060607,0.02888453,3425.4,3424.9,2.91972]
[1721348062376,0.02888453,3425.4,3425.0,2.91969]
[1721348062771,0.02888453,3425.4,3424.9,2.91977]
[1721348064476,0.02888453,3425.4,3424.7,2.9199]
[1721348064685,2.91946,3425.3,3424.7,2.9199]
[1721348064976,0.02870479,3425.2,3424.7,2.9199]
[1721348065972,0.02870479,3425.2,3424.7,2.91989]
[1721348066593,0.02870479,3425.2,3424.6,2.3033]
[1721348066594,2.9197,3425.0,3424.6,2.3033]
[1721348067014,0.02759302,3424.9,3424.6,2.3033]
[1721348068425,0.02759302,3424.9,3424.5,2.92009]
[1721348068807,0.02759302,3424.9,3424.3,2.4074]
[1721348069108,2.91992,3424.8,3424.3,2.4074]
[1721348069316,0.02771232,3424.7,3424.3,2.4074]
[1721348069609,2.91992,3424.8,3424.3,5.3277]
[1721348069825,0.02767808,3424.6,3424.3,5.3277]
[1721348069991,0.02771232,3424.7,3424.3,5.3277]
[1721348070177,2.91992,3424.8,3424.3,5.3277]
[1721348070389,0.02768886,3424.7,3424.3,5.3277]
[1721348070608,5.83952,3425.0,3424.3,5.3277]
[1721348070609,2.91985,3424.9,3424.3,5.3277]
[1721348070812,2.9476631,3424.8,3424.3,2.4074]
[1721348071294,2.91997,3424.7,3424.3,2.4074]
[1721348071653,0.02776472,3424.6,3424.3,2.4074]
[1721348073141,0.02776472,3424.6,3424.1,2.92042]
[1721348074077,2.92018,3424.5,3424.0,2.4564]
[1721348074314,0.62041442,3424.6,3424.0,2.4564]
[1721348074315,2.94792191,3424.4,3424.0,2.4564]
[1721348074618,2.92031,3424.3,3423.7,5.17436]
[1721348074819,2.97922229,3424.3,3423.7,5.17436]
[1721348075019,0.02768848,3424.2,3423.7,5.17436]
[1721348076184,0.02768848,3424.2,3423.8,2.92072]
[1721348076385,2.92031,3424.3,3423.7,5.17436]
[1721348076604,0.02770021,3424.2,3423.7,5.17436]
[1721348077018,0.02770021,3424.2,3423.7,8.09511]
[1721348077231,0.02770021,3424.2,3423.7,5.17435]
[1721348077416,2.92027,3424.4,3423.8,2.92071]
[1721348077892,0.02775281,3424.3,3423.8,2.92071]
[1721348078314,1.046,3424.1,3423.8,2.92071]
[1721348078506,0.02756967,3424.0,3423.8,2.92071]
[1721348081140,0.02756967,3424.0,3423.9,2.92064]
[1721348081439,1.046,3424.3,3423.9,2.92064]
[1721348081637,0.02734912,3424.0,3423.9,2.92064]
[1721348081800,1.046,3424.3,3423.9,2.92064]
[1721348081998,0.02733306,3424.0,3423.7,5.17434]
[1721348082245,2.92026,3424.4,3423.7,5.17434]
[1721348082456,0.02731054,3423.9,3423.7,5.17434]
[1721348082620,2.97917229,3424.4,3423.8,2.92073]
[1721348083019,0.02741084,3424.3,3423.8,2.92073]
[1721348083233,0.02741084,3424.3,3423.7,2.2536]
[1721348083234,2.92049,3424.1,3423.7,2.2536]
[1721348083415,2.94778084,3424.3,3423.7,2.2536]
[1721348083618,0.02734479,3424.0,3423.7,2.2536]
[1721348083964,2.92049,3424.1,3423.7,2.2536]
[1721348084107,0.02732889,3423.9,3423.7,2.2536]
[1721348084307,2.92049,3424.1,3423.7,2.2536]
[1721348084537,0.0273497,3423.8,3423.7,2.2536]
[1721348085167,2.92049,3424.1,3423.7,2.2536]
[1721348085706,0.05891229,3424.0,3423.7,2.2536]
[1721348086022,2.92103,3423.5,3423.1,2.2563]
[1721348086375,2.92103,3423.5,3422.8,2.92152]
[1721348086376,2.92108,3423.4,3422.8,5.17782]
[1721348086542,2.92108,3423.4,3422.8,2.2563]
[1721348086543,0.543108,3423.4,3422.8,2.2563]
[1721348086747,2.92131,3423.2,3422.8,2.2563]
[1721348087530,0.02663967,3423.1,3422.8,2.2563]
[1721348088131,2.92116,3423.3,3422.8,2.2563]
[1721348088359,0.02652345,3423.2,3422.8,5.17787]
[1721348088540,2.92094,3423.6,3422.8,5.17787]
[1721348088726,0.543094,3423.5,3422.8,5.17787]
[1721348088936,0.56968695,3423.5,3422.8,5.17787]
[1721348089123,2.92112,3423.4,3422.8,5.17787]
[1721348089453,2.92112,3423.4,3422.5,2.9218]
[1721348089454,2.92131,3423.2,3422.5,5.28462]
[1721348089856,0.02645584,3423.1,3422.7,2.92165]
[1721348090018,0.02645584,3423.1,3422.6,2.92168]
[1721348090220,2.92112,3423.4,3422.6,2.92168]
[1721348090421,0.02642155,3423.0,3422.6,2.92168]
[1721348090622,2.92123,3423.3,3422.6,2.92168]
[1721348090857,0.02638727,3422.9,3422.6,2.92168]
[1721348091056,2.92123,3423.3,3422.6,2.92168]
[1721348091219,0.02635298,3422.8,3422.7,5.84333]
[1721348091426,2.92098,3423.5,3422.9,2.92145]
[1721348091719,2.92109,3423.4,3422.7,2.92166]
[1721348091930,2.92115,3423.3,3422.8,2.92158]
[1721348092125,0.0264453,3423.2,3422.8,2.92158]
[1721348092338,2.92115,3423.3,3422.8,2.92158]
[1721348092551,2.92104,3423.5,3422.8,2.92158]
[1721348092920,3.756237,3423.5,3422.8,2.92158]
[1721348093273,0.02642881,3423.4,3422.9,2.92149]
[1721348093559,0.02642881,3423.4,3422.9,2.92143]
[1721348093726,0.02642881,3423.4,3422.9,2.92145]
[1721348093926,0.02642881,3423.4,3423.0,2.92139]
[1721348094260,0.02642881,3423.4,3423.1,2.4186]
[1721348094623,0.02642881,3423.4,3423.2,2.92116]
[1721348094864,3.3784939,3424.0,3423.4,2.92105]
[1721348095024,1.06168018,3423.9,3423.4,2.92105]
[1721348095230,3.3784939,3424.0,3423.4,2.92105]
[1721348095427,2.92064,3423.9,3423.4,2.92105]
[1721348096554,2.92064,3423.9,3423.3,2.92114]
[1721348096798,2.92075,3423.8,3423.2,2.92116]
[1721348096933,5.84156,3423.8,3423.2,2.92116]
[1721348097129,2.92081,3423.7,3423.2,2.92116]
[1721348097541,3.80169739,3423.8,3423.2,2.92116]
[1721348098139,3.80169739,3423.8,3423.3,2.92112]
[1721348098406,2.92075,3423.8,3423.1,2.4186]
[1721348098567,0.02641503,3423.7,3423.2,2.92119]
[1721348098898,0.02641503,3423.7,3423.2,5.84235]
[1721348099105,0.02641503,3423.7,3423.2,2.92116]
[1721348099258,0.02641503,3423.7,3423.2,5.84235]
[1721348099458,0.02641503,3423.7,3423.2,2.92116]
[1721348099683,0.02641503,3423.7,3423.2,5.84233]
[1721348100296,0.02641503,3423.7,3423.2,2.92116]
[1721348100509,0.02641503,3423.7,3423.4,2.92106]
[1721348100689,3.3785139,3424.0,3423.2,5.84232]
[1721348101001,3.3785139,3424.0,3423.2,2.92116]
[1721348101002,5.84153,3423.8,3423.2,2.92116]
[1721348101152,2.92083,3423.7,3423.2,2.92116]
[1721348102110,0.02626694,3423.6,3423.2,2.92116]
[1721348102287,0.02626694,3423.6,3422.6,2.92175]
[1721348102288,2.92105,3423.5,3422.9,2.92148]
[1721348102809,3.00618621,3423.4,3422.7,2.9216]
[1721348102983,2.92155,3422.9,3422.5,7.47]
[1721348103344,2.92155,3422.9,3422.3,2.92196]
[1721348103345,0.02776308,3422.8,3422.3,2.92194]
[1721348103764,2.92147,3423.0,3422.4,2.9219]
[1721348103966,0.02759409,3422.9,3422.5,2.92181]
[1721348104176,2.9215,3422.9,3422.3,2.92197]
[1721348104365,0.02755734,3422.8,3422.2,5.21793]
[1721348104615,2.92155,3422.9,3422.2,5.21793]
[1721348104941,3.59249711,3422.8,3422.2,5.21793]
[1721348105391,0.02771482,3422.8,3422.3,2.92195]
[1721348105768,2.92145,3423.0,3422.3,2.92195]
[1721348105975,0.02774294,3422.9,3422.3,2.92195]
[1721348106980,0.02774294,3422.9,3422.4,2.92188]
[1721348107180,0.02774294,3422.9,3422.2,2.2959]
[1721348107502,5.9212,3423.3,3422.8,2.4292]
[1721348108006,2.92126,3423.2,3422.8,2.4292]
[1721348108404,2.92126,3423.2,3422.7,2.92166]
[1721348108713,3.0,3423.3,3422.7,2.92166]
[1721348109020,3.0,3423.3,3422.8,2.92158]
[1721348109312,3.0,3423.3,3422.7,2.92166]
[1721348109313,0.0297388,3423.2,3422.7,2.92166]
[1721348110882,2.9509788,3423.2,3422.7,2.92166]
[1721348111296,0.0297388,3423.2,3422.7,2.92166]
[1721348111508,0.0297388,3423.2,3422.8,2.92156]
[1721348111910,2.92116,3423.3,3422.6,2.92168]
[1721348112125,0.02981838,3423.1,3422.6,2.92168]
[1721348112415,0.02977882,3423.0,3422.7,2.92158]
[1721348112579,5.92114,3423.4,3422.7,2.92163]
[1721348112775,0.02986614,3423.3,3422.7,2.92163]
[1721348113100,5.92114,3423.4,3422.7,2.92159]
[1721348113281,2.92118,3423.3,3422.7,2.92159]
[1721348113696,2.92124,3423.2,3422.7,2.92159]
[1721348114114,2.92124,3423.2,3422.6,2.92175]
[1721348115105,2.92124,3423.2,3422.5,5.35096]
[1721348115106,2.92124,3423.2,3422.7,2.92165]
[1721348115690,8.84228,3423.4,3422.7,2.92165]
[1721348116310,2.92117,3423.3,3422.7,2.92165]
[1721348117424,2.92093,3423.6,3422.6,0.05843113]
[1721348117629,2.92093,3423.6,3423.1,5.26891]
[1721348117828,2.92093,3423.6,3423.1,2.3476]
[1721348117995,2.92093,3423.6,3422.8,5.26913]
[1721348118192,2.92093,3423.6,3422.9,2.92148]
[1721348118521,2.92103,3423.5,3422.9,2.92148]
[1721348119299,3.464023,3423.6,3422.8,5.26913]
[1721348119300,2.92108,3423.4,3422.8,5.26913]
[1721348119722,6.385003,3423.6,3422.9,2.92148]
[1721348120029,2.92094,3423.6,3422.8,2.3476]
[1721348120406,2.92111,3423.4,3422.9,2.92146]
[1721348120796,2.92111,3423.4,3422.8,2.3476]
[1721348121036,2.51,3423.7,3422.5,2.3389]
[1721348121037,2.92129,3423.2,3422.5,2.3389]
[1721348121330,2.92138,3423.1,3422.6,2.92174]
[1721348122196,2.92143,3423.0,3422.5,5.26072]
[1721348123513,2.92131,3423.2,3422.5,5.26072]
[1721348123713,2.92131,3423.2,3422.5,8.1825]
[1721348123913,2.92133,3423.1,3422.5,5.26068]
[1721348124144,2.92133,3423.1,3422.5,8.18245]
[1721348124437,2.92133,3423.1,3422.5,5.26067]
[1721348125036,5.27341,3423.6,3422.7,2.92164]
[1721348125037,2.92118,3423.3,3422.7,2.92164]
[1721348125224,2.92125,3423.2,3422.7,2.92164]
[1721348126042,2.92113,3423.4,3422.7,2.92164]
[1721348126209,2.92098,3423.6,3422.9,2.92149]
[1721348126415,3.0,3423.5,3422.7,2.92164]
[1721348126620,5.84347,3422.7,3422.1,2.2635052]
[1721348126938,2.92127,3423.2,3422.1,5.1856752]
[1721348126939,2.92166,3422.8,3422.1,5.1856752]
[1721348127537,2.92169,3422.7,3422.1,5.1856752]
[1721348127908,2.92176,3422.6,3422.1,5.1856752]
[1721348128906,2.92169,3422.7,3422.1,5.1856752]
[1721348129837,2.92193,3422.4,3422.1,0.0037052]
[1721348130451,2.92182,3422.6,3422.1,0.0037052]
[1721348130625,2.92184,3422.5,3422.1,0.0037052]
[1721348130808,2.92192,3422.4,3422.1,0.0037052]
[1721348131439,2.92202,3422.3,3422.1,0.0037052]
[1721348134116,5.8441,3422.3,3422.1,0.0037052]
[1721348134346,2.92202,3422.3,3422.1,0.0037052]
[1721348135423,5.84418,3422.2,3422.1,0.0037052]
[1721348135987,11.76627,3422.2,3422.1,0.0037052]
[1721348136351,5.92209,3422.2,3422.1,0.0037052]
[1721348136992,3.0,3422.2,3422.1,0.0037052]
[1721348137282,6.27318429,3422.3,3422.1,0.0037052]
[1721348137493,1.70185043,3422.2,3422.1,0.0037052]
[1721348138258,3.0,3422.3,3422.1,0.0037052]
[1721348141755,3.0,3422.3,3422.1,2.9258752]
[1721348142473,3.0,3422.3,3422.2,2.92209]
[1721348143996,5.4859,3422.3,3422.1,0.0037052]
[1721348144160,0.89966229,3422.2,3422.1,0.0037052]
[1721348144361,3.40966229,3422.2,3422.1,0.0037052]
[1721348144562,6.35075,3422.2,3422.1,0.0037052]
[1721348145293,9.27284,3422.2,3422.1,0.0037052]
[1721348145534,6.35075,3422.2,3422.1,0.0037052]
[1721348147757,3.84075,3422.2,3422.1,0.0037052]
[1721348148113,3.0,3422.2,3422.1,2.9258852]
[1721348148472,3.0,3422.3,3422.1,2.9258852]
[1721348148972,2.51,3422.2,3422.1,0.0037052]
[1721348149210,5.51,3422.2,3422.1,0.0037052]
[1721348149391,7.483753,3422.2,3422.1,0.0037052]
[1721348150076,10.405843,3422.2,3422.1,0.0037052]
[1721348154774,7.483753,3422.2,3422.1,0.0037052]
[1721348155030,2.9216,3422.4,3422.1,0.0037052]
[1721348155175,2.9216,3422.4,3422.3,2.92201]
[1721348158207,2.9216,3422.4,3422.1,2.9258052]
[1721348158407,2.9216,3422.4,3422.2,2.92207]
[1721348159729,2.9216,3422.4,3422.1,0.0037052]
[1721348159730,5.84358,3422.4,3422.1,0.0037052]
[1721348159881,0.29216,3422.3,3422.1,0.0037052]
[1721348163887,0.29216,3422.3,3422.1,2.9258652]
[1721348164189,2.9216,3422.4,3422.2,2.4353]
[1721348167800,2.9216,3422.4,3422.1,0.0037052]
[1721348168649,2.9216,3422.4,3422.3,2.4802]
[1721348169939,5.84357,3422.4,3422.1,0.0037052]
[1721348170113,0.876545,3422.3,3422.1,0.0037052]
[1721348171099,3.798565,3422.3,3422.1,0.0037052]
[1721348172043,8.90309229,3422.2,3422.1,0.0037052]
[1721348178887,11.82518229,3422.2,3422.1,0.0037052]
[1721348179802,11.82518229,3422.2,3420.9,2.3711]
[1721348179803,2.92312,3421.0,3420.9,2.3711]
[1721348181270,2.92336,3420.8,3420.5,2.3932]
[1721348181791,2.92338,3420.7,3420.5,2.3932]
[1721348181966,2.98229229,3420.7,3420.5,2.3932]
[1721348182176,2.92346,3420.6,3419.9,2.4288]
[1721348182380,2.92368,3420.4,3419.9,2.4288]
[1721348183044,2.92372,3420.3,3419.9,2.4288]
[1721348183293,2.92372,3420.3,3419.8,0.1493441]
[1721348183294,2.56891229,3420.3,3419.8,0.1493441]
[1721348183492,3.22181723,3420.5,3419.8,0.1493441]
[1721348183493,8.35812,3419.9,3419.8,0.1493441]
[1721348183642,6.57576323,3419.9,3419.8,0.1493441]
[1721348183889,8.43406,3419.9,3419.8,0.1493441]
[1721348184079,3.0,3419.9,3419.8,0.1493441]
[1721348184471,3.0,3420.0,3419.8,0.1493441]
[1721348184881,2.92406,3419.9,3419.8,0.1493441]
[1721348185082,5.98297229,3419.9,3419.8,0.1493441]
[1721348185859,5.92406,3419.9,3419.8,0.1493441]
[1721348186364,12.242924,3419.9,3419.8,0.1493441]
[1721348188802,15.166984,3419.9,3419.8,0.1493441]
[1721348189192,18.796984,3419.9,3419.8,0.1493441]
[1721348189375,21.228684,3419.9,3419.8,0.1493441]
[1721348189992,24.152744,3419.9,3419.8,0.1493441]
[1721348190799,2.92505,3418.8,3418.2,2.2866]
[1721348190955,2.92505,3418.8,3418.2,5.21211]
[1721348191181,5.43486,3419.0,3418.2,2.2866]
[1721348191182,2.92518,3418.6,3418.2,2.2866]
[1721348191525,2.92518,3418.6,3417.5,0.5]
[1721348191526,3.05891229,3418.5,3417.6,2.2866]
[1721348191678,3.05891229,3418.5,3417.6,2.2366]
[1721348191679,2.92585,3417.9,3417.6,2.2366]
[1721348191882,2.92585,3417.9,3417.5,0.5]
[1721348191883,2.51,3417.8,3417.5,0.5]
[1721348192096,2.51,3417.8,3416.7,0.01184398]
[1721348192097,0.05891229,3417.7,3416.7,0.01184398]
[1721348192378,5.85342,3416.8,3416.7,0.01184398]
[1721348192608,2.9264,3417.2,3416.7,0.01184398]
[1721348192755,3.0,3417.7,3416.7,0.01184398]
[1721348192756,3.0,3417.4,3416.7,0.01184398]
[1721348192899,3.0,3417.7,3416.7,0.01184398]
[1721348193103,2.92553,3418.2,3416.7,0.01184398]
[1721348193357,0.292553,3418.2,3417.6,2.92596]
[1721348193657,0.292553,3418.2,3416.7,0.01184398]
[1721348193658,0.59090823,3418.6,3417.0,2.98500126]
[1721348193811,2.51,3418.8,3418.1,2.92552]
[1721348194020,2.92497,3418.9,3418.2,2.92548]
[1721348194574,2.3131,3419.8,3418.0,5.33687]
[1721348194575,2.51,3418.8,3418.0,5.33687]
[1721348194894,2.92509,3418.7,3418.0,5.33687]
[1721348195405,2.9251,3418.7,3418.0,2.4112]
[1721348195569,2.92531,3418.5,3418.0,2.4112]
[1721348196221,3.46868,3418.6,3418.0,2.3612]
[1721348196635,3.46874,3418.6,3418.0,2.3612]
[1721348196810,0.54351,3418.6,3418.0,2.3612]
[1721348196984,3.54351,3418.6,3418.0,5.28687]
[1721348197359,3.0,3418.6,3418.1,2.92558]
[1721348197505,7.42,3419.6,3418.2,0.05811746]
[1721348197702,7.42,3419.6,3418.0,2.3612]
[1721348197703,2.92426,3419.7,3419.0,2.92483]
[1721348198020,2.9243,3419.7,3418.9,2.92487]
[1721348198198,0.6733214,3419.6,3418.9,2.92487]
[1721348198789,0.6733214,3419.6,3419.0,2.92481]
[1721348198994,0.6733214,3419.6,3418.2,2.92545]
[1721348198995,0.6733214,3419.6,3418.8,2.92495]
[1721348199191,2.92457,3419.3,3418.6,2.92511]
[1721348199436,3.05891229,3419.2,3418.6,2.92511]
[1721348199815,3.0,3419.2,3418.8,2.92499]
[1721348199993,2.92445,3419.5,3418.8,2.92499]
[1721348199994,3.0,3419.4,3418.8,2.92499]
[1721348200194,0.843445,3419.3,3418.6,2.92516]
[1721348200512,0.05891229,3419.2,3418.6,2.92516]
[1721348200962,3.05891229,3419.2,3418.6,2.92516]
[1721348201397,3.05891229,3419.2,3418.2,2.9255]
[1721348201592,2.56891229,3419.2,3418.0,5.28687]
[1721348201953,2.92509,3418.7,3418.1,2.92559]
[1721348202633,3.64923573,3419.1,3418.4,2.92528]
[1721348202794,6.57397573,3419.1,3418.4,2.92528]
[1721348203490,6.57397573,3419.1,3418.5,2.92525]
[1721348203943,2.51,3420.0,3418.4,2.92534]
[1721348204169,2.92416,3419.8,3419.1,2.92468]
[1721348204622,2.51,3420.4,3419.4,2.92446]
[1721348204623,3.0,3419.7,3419.4,2.92446]
[1721348204824,3.0,3419.7,3419.1,2.92467]
[1721348204825,2.92398,3420.0,3419.2,2.9246]
[1721348205069,0.584787,3419.9,3419.2,2.92465]
[1721348205397,2.51,3420.4,3419.2,2.92465]
[1721348205398,2.92383,3420.2,3419.2,2.92465]
[1721348205740,2.92406,3419.9,3419.3,2.92456]
[1721348205923,2.92406,3419.9,3419.1,2.92468]
[1721348206548,3.0,3419.8,3418.8,2.92492]
[1721348206754,2.92389,3420.1,3419.3,2.9245]
[1721348206924,3.89065423,3420.0,3418.8,2.92493]
[1721348207123,2.92429,3419.7,3418.8,2.92493]
[1721348207328,3.0,3419.6,3419.0,2.9248]
[1721348207532,3.0,3419.8,3419.0,2.9248]
[1721348207840,2.92372,3420.3,3419.7,2.92419]
[1721348208039,0.584728,3420.3,3419.8,2.92412]
[1721348208217,2.92356,3420.5,3419.8,2.92412]
[1721348208916,0.45833408,3420.7,3419.6,2.4202]
[1721348209118,2.92389,3420.1,3419.6,2.4202]
[1721348210154,2.92398,3420.0,3419.6,2.4202]
[1721348212127,2.92381,3420.2,3419.6,2.4202]
[1721348212327,2.92389,3420.1,3419.6,2.4202]
[1721348214564,2.92397,3420.0,3419.6,2.4202]
[1721348216538,3.508597,3420.2,3419.6,2.4202]
[1721348217580,2.9239,3420.1,3419.6,2.4202]
[1721348218268,3.508557,3420.2,3419.6,5.3445]
[1721348218469,2.92381,3420.2,3419.6,5.3445]
[1721348219961,2.92373,3420.3,3419.6,5.34445]
[1721348220157,3.0,3420.2,3419.6,5.34445]
[1721348220486,0.45833408,3420.7,3420.1,2.92383]
[1721348220670,3.26168241,3420.6,3420.0,2.92395]
[1721348220881,0.33817241,3420.6,3420.1,2.92388]
[1721348221044,0.33817241,3420.6,3420.0,2.92395]
[1721348221373,0.33817241,3420.6,3420.1,2.92388]
[1721348221574,0.33817241,3420.6,3420.2,2.92379]
[1721348221772,0.33817241,3420.6,3420.3,2.92371]
[1721348221937,0.33817241,3420.6,3420.2,2.92379]
[1721348221938,0.45833408,3420.7,3420.5,2.9235]
[1721348222143,0.45833408,3420.7,3420.6,2.92346]
[1721348222465,2.92276,3421.5,3420.7,2.92336]
[1721348222667,2.9228,3421.4,3420.7,2.92336]
[1721348222889,0.05891229,3421.4,3420.5,2.4204]
[1721348223100,2.92301,3421.2,3420.5,2.4204]
[1721348223281,2.92335,3420.8,3420.1,2.92388]
[1721348223512,2.92364,3420.4,3420.0,2.4348]
[1721348223809,2.98231229,3420.7,3420.0,2.4348]
[1721348223810,2.92351,3420.6,3420.0,2.4348]
[1721348223999,2.92351,3420.6,3420.0,5.35877]
[1721348224170,0.584691,3420.5,3420.0,5.35877]
[1721348224501,3.508241,3420.5,3420.0,5.35877]
[1721348224737,0.584691,3420.5,3420.0,5.35877]
[1721348225004,2.9234,3420.7,3420.0,5.35877]
[1721348225312,2.92356,3420.5,3420.0,2.4348]
[1721348225513,2.92309,3421.1,3420.0,2.4348]
[1721348225666,2.92356,3420.5,3420.0,2.4348]
[1721348225872,2.92342,3420.7,3420.0,5.35875]
[1721348225873,0.584698,3420.4,3420.0,5.35875]
[1721348226298,0.584698,3420.4,3420.0,2.4348]
[1721348226479,0.584698,3420.4,3419.5,2.2788]
[1721348226480,2.92403,3420.0,3419.5,2.2788]
[1721348226861,2.92402,3420.0,3419.5,2.2788]
[1721348226964,2.92383,3420.2,3419.5,2.2788]
[1721348227167,2.92399,3420.0,3419.5,2.2788]
[1721348227396,2.92413,3419.9,3419.5,2.2788]
[1721348227601,3.508942,3419.9,3419.5,2.2788]